[Event "*** SCC Grand Prix: Titled Tuesday Blitz"]
[Site "Chess.com"]
[Date "2020.07.14"]
[Round "3"]
[White "SantoBlue"]
[Black "ljuks68"]
[Result "0-1"]
[WhiteElo "2754"]
[BlackElo "2450"]
[TimeControl "180+1"]
[EndTime "10:28:29 PDT"]
[Termination "ljuks68 won by resignation"]

1. e4 {[%clk 0:02:59.1]} 1... e6 {[%clk 0:02:59.7]} 2. d4 {[%clk 0:02:59]} 2...
d5 {[%clk 0:02:59.9]} 3. Nd2 {[%clk 0:02:59.4]} 3... Nf6 {[%clk 0:02:59.7]} 4.
e5 {[%clk 0:02:58.6]} 4... Nfd7 {[%clk 0:03:00.2]} 5. Bd3 {[%clk 0:02:59.3]}
5... c5 {[%clk 0:03:00.4]} 6. c3 {[%clk 0:03:00.2]} 6... Nc6 {[%clk 0:03:00.7]}
7. Ne2 {[%clk 0:03:00.7]} 7... cxd4 {[%clk 0:03:01]} 8. cxd4 {[%clk 0:03:00.9]}
8... f6 {[%clk 0:03:01.6]} 9. exf6 {[%clk 0:03:01.1]} 9... Qxf6 {[%clk
0:03:01.5]} 10. Nf3 {[%clk 0:03:01.3]} 10... h6 {[%clk 0:03:01.9]} 11. O-O
{[%clk 0:03:01.4]} 11... Bd6 {[%clk 0:03:01.9]} 12. Nc3 {[%clk 0:02:53.1]} 12...
O-O {[%clk 0:03:00]} 13. Be3 {[%clk 0:02:53.2]} 13... Rd8 {[%clk 0:02:57.8]} 14.
Re1 {[%clk 0:02:51.8]} 14... Nf8 {[%clk 0:02:57.3]} 15. Rc1 {[%clk 0:02:51.7]}
15... Bd7 {[%clk 0:02:57.2]} 16. Bb5 {[%clk 0:02:51.1]} 16... Be8 {[%clk
0:02:48.9]} 17. h3 {[%clk 0:02:47.6]} 17... Bh5 {[%clk 0:02:44.4]} 18. g4 {[%clk
0:02:47.5]} 18... Be8 {[%clk 0:02:42.1]} 19. Bxc6 {[%clk 0:02:46.8]} 19... Bxc6
{[%clk 0:02:37.7]} 20. Ne5 {[%clk 0:02:46.9]} 20... Bxe5 {[%clk 0:02:14.8]} 21.
dxe5 {[%clk 0:02:46.5]} 21... Qh4 {[%clk 0:02:14.8]} 22. Bd4 {[%clk 0:02:20]}
22... Qxh3 {[%clk 0:02:10.9]} 23. Re3 {[%clk 0:02:20]} 23... Qh4 {[%clk
0:02:08]} 24. Qd3 {[%clk 0:01:57.3]} 24... Qxg4+ {[%clk 0:02:01.1]} 25. Rg3
{[%clk 0:01:57.4]} 25... Qf5 {[%clk 0:02:00.7]} 26. Qe3 {[%clk 0:01:53.6]} 26...
Ng6 {[%clk 0:01:47.7]} 27. Kh2 {[%clk 0:01:50.2]} 27... Nf4 {[%clk 0:01:42]} 28.
Rh1 {[%clk 0:01:48.7]} 28... Rf8 {[%clk 0:01:37.6]} 29. Kg1 {[%clk 0:01:48.9]}
29... Kh7 {[%clk 0:01:32.2]} 30. f3 {[%clk 0:01:38.6]} 30... b5 {[%clk
0:01:24.6]} 31. Bc5 {[%clk 0:01:18.7]} 31... Rf7 {[%clk 0:01:22.2]} 32. Ne2
{[%clk 0:01:18.9]} 32... Nxe2+ {[%clk 0:01:17.6]} 33. Qxe2 {[%clk 0:01:18.9]}
33... d4 {[%clk 0:01:15.4]} 34. Rhh3 {[%clk 0:01:16.3]} 34... d3 {[%clk
0:01:11.5]} 35. Qe1 {[%clk 0:01:16.5]} 35... Rd8 {[%clk 0:00:55.8]} 36. Bd6
{[%clk 0:01:15.7]} 36... Bd5 {[%clk 0:00:54.9]} 37. Qd2 {[%clk 0:01:14.6]} 37...
Rc8 {[%clk 0:00:53.1]} 38. Bb4 {[%clk 0:00:57.9]} 38... Rc2 {[%clk 0:00:49.7]}
39. Qe3 {[%clk 0:00:58.3]} 39... Re2 {[%clk 0:00:44.1]} 40. Qc1 {[%clk
0:00:56.6]} 40... Qxe5 {[%clk 0:00:41]} 41. Bd2 {[%clk 0:00:54.8]} 41... Rc7
{[%clk 0:00:33.5]} 42. Qd1 {[%clk 0:00:44.2]} 42... Rc2 {[%clk 0:00:32.8]} 43.
Bb4 {[%clk 0:00:25.9]} 43... Qe3+ {[%clk 0:00:30.4]} 44. Kh1 {[%clk 0:00:26.3]}
44... Rc1 {[%clk 0:00:30.3]} 0-1

[Event "*** SCC Grand Prix: Titled Tuesday Blitz"]
[Site "Chess.com"]
[Date "2020.07.14"]
[Round "3"]
[White "korkmaz16"]
[Black "latixxa"]
[Result "1/2-1/2"]
[WhiteElo "2314"]
[BlackElo "2109"]
[TimeControl "180+1"]
[EndTime "10:28:29 PDT"]
[Termination "Game drawn by repetition"]

1. d4 {[%clk 0:03:00.9]} 1... Nf6 {[%clk 0:02:59.3]} 2. Nf3 {[%clk 0:03:00.1]}
2... d5 {[%clk 0:02:58.2]} 3. e3 {[%clk 0:02:58.5]} 3... c5 {[%clk 0:02:57.1]}
4. b3 {[%clk 0:02:57.8]} 4... e6 {[%clk 0:02:56.7]} 5. Bb2 {[%clk 0:02:57.4]}
5... Bd6 {[%clk 0:02:56.9]} 6. Bd3 {[%clk 0:02:57.5]} 6... Nbd7 {[%clk
0:02:56.9]} 7. O-O {[%clk 0:02:53.1]} 7... Qc7 {[%clk 0:02:56.7]} 8. Nbd2 {[%clk
0:02:48.1]} 8... O-O {[%clk 0:02:56.1]} 9. c4 {[%clk 0:02:35.2]} 9... b6 {[%clk
0:02:55.1]} 10. Rc1 {[%clk 0:02:30.3]} 10... Bb7 {[%clk 0:02:54.1]} 11. cxd5
{[%clk 0:02:29.8]} 11... exd5 {[%clk 0:02:48.9]} 12. dxc5 {[%clk 0:02:27.7]}
12... bxc5 {[%clk 0:02:48.4]} 13. Qc2 {[%clk 0:02:18.1]} 13... h6 {[%clk
0:02:45.6]} 14. e4 {[%clk 0:02:15.4]} 14... d4 {[%clk 0:02:20.4]} 15. Nc4 {[%clk
0:02:10.8]} 15... Bf4 {[%clk 0:02:19.9]} 16. Ncd2 {[%clk 0:01:52.2]} 16... Rac8
{[%clk 0:02:16.9]} 17. g3 {[%clk 0:01:38.2]} 17... Bxd2 {[%clk 0:02:10.7]} 18.
Nxd2 {[%clk 0:01:31.5]} 18... Qd6 {[%clk 0:02:06.8]} 19. f4 {[%clk 0:01:27.7]}
19... Ng4 {[%clk 0:01:57.5]} 20. Nc4 {[%clk 0:01:24.6]} 20... Qe7 {[%clk
0:01:50.5]} 21. Rce1 {[%clk 0:01:18.5]} 21... Nb6 {[%clk 0:01:45]} 22. Qc1
{[%clk 0:00:56.8]} 22... Nxc4 {[%clk 0:01:37.4]} 23. Bxc4 {[%clk 0:00:56.5]}
23... Ne3 {[%clk 0:01:35.7]} 24. Rxe3 {[%clk 0:00:56.3]} 24... dxe3 {[%clk
0:01:36.6]} 25. Qc3 {[%clk 0:00:56.7]} 25... Qf6 {[%clk 0:01:31.3]} 26. Qxf6
{[%clk 0:00:56]} 26... gxf6 {[%clk 0:01:32.2]} 27. Bxf6 {[%clk 0:00:53.1]} 27...
Bxe4 {[%clk 0:01:31.4]} 28. Re1 {[%clk 0:00:53.7]} 28... Rfe8 {[%clk 0:01:12.7]}
29. Rxe3 {[%clk 0:00:53.2]} 29... Bg6 {[%clk 0:01:12.1]} 30. Rf3 {[%clk
0:00:50.3]} 30... Re1+ {[%clk 0:01:06.4]} 31. Kf2 {[%clk 0:00:50.2]} 31... Ra1
{[%clk 0:01:04.7]} 32. f5 {[%clk 0:00:49.5]} 32... Rxa2+ {[%clk 0:01:02.7]} 33.
Ke3 {[%clk 0:00:47.4]} 33... Bh5 {[%clk 0:00:57.4]} 34. g4 {[%clk 0:00:47.4]}
34... Bxg4 {[%clk 0:00:53.6]} 35. Rg3 {[%clk 0:00:47.5]} 35... h5 {[%clk
0:00:43.1]} 36. h3 {[%clk 0:00:47.7]} 36... Re8+ {[%clk 0:00:41.9]} 37. Kd3
{[%clk 0:00:44.9]} 37... Ree2 {[%clk 0:00:20.1]} 38. hxg4 {[%clk 0:00:44.1]}
38... Rad2+ {[%clk 0:00:19.4]} 39. Kc3 {[%clk 0:00:43.7]} 39... Rc2+ {[%clk
0:00:20.3]} 40. Kd3 {[%clk 0:00:44.3]} 40... Rcd2+ {[%clk 0:00:21.2]} 41. Kc3
{[%clk 0:00:44.8]} 41... Rc2+ {[%clk 0:00:21.7]} 42. Kd3 {[%clk 0:00:45.7]}
42... Rcd2+ {[%clk 0:00:20.6]} 1/2-1/2

[Event "*** SCC Grand Prix: Titled Tuesday Blitz"]
[Site "Chess.com"]
[Date "2020.07.14"]
[Round "3"]
[White "Boudicca64"]
[Black "MVM2008"]
[Result "0-1"]
[WhiteElo "1801"]
[BlackElo "2239"]
[TimeControl "180+1"]
[EndTime "10:28:30 PDT"]
[Termination "MVM2008 won by resignation"]

1. e4 {[%clk 0:02:54.3]} 1... e5 {[%clk 0:02:59.4]} 2. d4 {[%clk 0:02:53]} 2...
exd4 {[%clk 0:02:59.5]} 3. Qxd4 {[%clk 0:02:52.4]} 3... Nc6 {[%clk 0:02:59.4]}
4. Qe3 {[%clk 0:02:51.5]} 4... Nf6 {[%clk 0:02:57.9]} 5. Nc3 {[%clk 0:02:50.2]}
5... Bb4 {[%clk 0:02:57.2]} 6. Bd2 {[%clk 0:02:48.7]} 6... O-O {[%clk
0:02:55.3]} 7. O-O-O {[%clk 0:02:47.4]} 7... Re8 {[%clk 0:02:48.9]} 8. f3 {[%clk
0:02:45.8]} 8... d5 {[%clk 0:02:45.4]} 9. Qf2 {[%clk 0:02:44.3]} 9... dxe4
{[%clk 0:02:34.8]} 10. Bg5 {[%clk 0:02:42]} 10... e3 {[%clk 0:01:59.7]} 11. Qg3
{[%clk 0:02:31.2]} 11... Bd6 {[%clk 0:01:54.4]} 12. Qh4 {[%clk 0:02:15.5]} 12...
h6 {[%clk 0:01:45.8]} 13. Bxf6 {[%clk 0:01:59.6]} 13... Qxf6 {[%clk 0:01:45.4]}
14. Qxf6 {[%clk 0:01:58.5]} 14... gxf6 {[%clk 0:01:46.3]} 15. Bb5 {[%clk
0:01:55.6]} 15... Bd7 {[%clk 0:01:39.5]} 16. Ne4 {[%clk 0:01:53]} 16... a6
{[%clk 0:01:37.9]} 17. Nxf6+ {[%clk 0:01:50.9]} 17... Kg7 {[%clk 0:01:31.4]} 18.
Nxe8+ {[%clk 0:01:49.7]} 18... Rxe8 {[%clk 0:01:32.3]} 19. Bxc6 {[%clk
0:01:45.3]} 19... Bxc6 {[%clk 0:01:32.2]} 20. Ne2 {[%clk 0:01:44.3]} 20... Bc5
{[%clk 0:01:25.1]} 21. Rhe1 {[%clk 0:01:41.3]} 21... Bb5 {[%clk 0:01:17.3]} 22.
Nd4 {[%clk 0:01:38.6]} 22... Bd7 {[%clk 0:01:00.1]} 23. c3 {[%clk 0:01:29.1]}
23... b5 {[%clk 0:00:56.3]} 24. Nb3 {[%clk 0:01:19.9]} 24... Bd6 {[%clk
0:00:51.1]} 25. Nc5 {[%clk 0:01:14]} 25... e2 {[%clk 0:00:39.8]} 26. Rd5 {[%clk
0:01:02.9]} 26... Bc6 {[%clk 0:00:30.6]} 27. Rd4 {[%clk 0:00:58]} 27... Bxc5
{[%clk 0:00:29.1]} 28. Rg4+ {[%clk 0:00:56.1]} 28... Kh7 {[%clk 0:00:28.7]} 29.
Kd2 {[%clk 0:00:52.2]} 29... f5 {[%clk 0:00:22.6]} 30. Rd4 {[%clk 0:00:36.9]}
30... Bxd4 {[%clk 0:00:21.6]} 31. cxd4 {[%clk 0:00:35.9]} 31... Kg6 {[%clk
0:00:21.8]} 32. Rxe2 {[%clk 0:00:32.9]} 32... Rxe2+ {[%clk 0:00:21.9]} 33. Kxe2
{[%clk 0:00:31.6]} 33... f4 {[%clk 0:00:21.6]} 34. Kd3 {[%clk 0:00:30.4]} 34...
Kf5 {[%clk 0:00:20.6]} 35. b4 {[%clk 0:00:28.9]} 35... Bd5 {[%clk 0:00:19.4]}
36. a3 {[%clk 0:00:27.6]} 36... Bc4+ {[%clk 0:00:19.1]} 0-1

[Event "*** SCC Grand Prix: Titled Tuesday Blitz"]
[Site "Chess.com"]
[Date "2020.07.14"]
[Round "3"]
[White "KazakhFighter04"]
[Black "ChessicallyInclined"]
[Result "1-0"]
[WhiteElo "2743"]
[BlackElo "2493"]
[TimeControl "180+1"]
[EndTime "10:28:31 PDT"]
[Termination "KazakhFighter04 won by resignation"]

1. e4 {[%clk 0:03:00.9]} 1... c5 {[%clk 0:02:58.9]} 2. Nf3 {[%clk 0:03:00.5]}
2... Nc6 {[%clk 0:02:59.3]} 3. d4 {[%clk 0:03:00.8]} 3... cxd4 {[%clk
0:03:00.2]} 4. Nxd4 {[%clk 0:03:00.8]} 4... Nf6 {[%clk 0:03:00.7]} 5. Nc3 {[%clk
0:03:01.2]} 5... e5 {[%clk 0:03:00.5]} 6. Ndb5 {[%clk 0:03:01.1]} 6... d6 {[%clk
0:02:58.8]} 7. Bg5 {[%clk 0:03:01.2]} 7... a6 {[%clk 0:02:57.9]} 8. Na3 {[%clk
0:03:01.4]} 8... b5 {[%clk 0:02:57.4]} 9. Bxf6 {[%clk 0:03:01]} 9... gxf6 {[%clk
0:02:56.3]} 10. Nd5 {[%clk 0:03:00.9]} 10... Bg7 {[%clk 0:02:56]} 11. g3 {[%clk
0:02:59]} 11... f5 {[%clk 0:02:31.1]} 12. exf5 {[%clk 0:02:57.1]} 12... Bxf5
{[%clk 0:02:30.8]} 13. Bg2 {[%clk 0:02:56.9]} 13... Rc8 {[%clk 0:02:06.2]} 14.
O-O {[%clk 0:02:55]} 14... O-O {[%clk 0:02:05.3]} 15. c3 {[%clk 0:02:54.1]}
15... Bg6 {[%clk 0:01:48.6]} 16. Nc2 {[%clk 0:02:53.5]} 16... a5 {[%clk
0:01:33.5]} 17. a3 {[%clk 0:02:49.9]} 17... f5 {[%clk 0:01:19.1]} 18. f4 {[%clk
0:02:48.5]} 18... e4 {[%clk 0:01:11.7]} 19. Nce3 {[%clk 0:02:44.9]} 19... b4
{[%clk 0:01:08.6]} 20. axb4 {[%clk 0:02:43.2]} 20... axb4 {[%clk 0:01:09.5]} 21.
Ra6 {[%clk 0:02:34.9]} 21... bxc3 {[%clk 0:01:06.5]} 22. bxc3 {[%clk 0:02:35.8]}
22... Ne7 {[%clk 0:00:59]} 23. Ra7 {[%clk 0:02:27.1]} 23... Nxd5 {[%clk
0:00:53.9]} 24. Nxd5 {[%clk 0:02:27.4]} 24... Rc5 {[%clk 0:00:51.1]} 25. Kh1
{[%clk 0:02:19.8]} 25... Kh8 {[%clk 0:00:50.9]} 26. Qd2 {[%clk 0:02:15.9]} 26...
Bf7 {[%clk 0:00:46.7]} 27. c4 {[%clk 0:01:55.3]} 27... Rxc4 {[%clk 0:00:46.3]}
28. Ne3 {[%clk 0:01:55.5]} 28... Rc5 {[%clk 0:00:45.7]} 29. Rd1 {[%clk
0:01:54.8]} 29... Qb6 {[%clk 0:00:35.4]} 30. Rd7 {[%clk 0:01:49.7]} 30... Bg6
{[%clk 0:00:26.6]} 31. Rxd6 {[%clk 0:01:48.5]} 31... Qb3 {[%clk 0:00:20]} 32.
Rd8 {[%clk 0:01:44.1]} 32... Rc8 {[%clk 0:00:18.5]} 33. Rd7 {[%clk 0:01:38.1]}
33... Rg8 {[%clk 0:00:17.6]} 34. Bh3 {[%clk 0:01:30]} 34... Rc5 {[%clk
0:00:11.2]} 35. Rd8 {[%clk 0:01:04.8]} 35... h6 {[%clk 0:00:07.9]} 36. Rxg8+
{[%clk 0:01:01.9]} 36... Qxg8 {[%clk 0:00:08.8]} 37. Qd6 {[%clk 0:00:58.6]}
37... Rc3 {[%clk 0:00:08.2]} 38. Qxg6 {[%clk 0:00:58.1]} 38... Rxe3 {[%clk
0:00:08.3]} 39. Bxf5 {[%clk 0:00:57.1]} 39... Re2 {[%clk 0:00:07.8]} 40. Rd8
{[%clk 0:00:48.9]} 40... Re1+ {[%clk 0:00:08]} 41. Kg2 {[%clk 0:00:48.8]} 41...
Rg1+ {[%clk 0:00:03]} 42. Kxg1 {[%clk 0:00:46.6]} 42... Bd4+ {[%clk 0:00:03.2]}
43. Kg2 {[%clk 0:00:47.1]} 1-0

[Event "*** SCC Grand Prix: Titled Tuesday Blitz"]
[Site "Chess.com"]
[Date "2020.07.14"]
[Round "3"]
[White "OnePeculiarConundrum"]
[Black "arminmusovic"]
[Result "0-1"]
[WhiteElo "2359"]
[BlackElo "2558"]
[TimeControl "180+1"]
[EndTime "10:28:31 PDT"]
[Termination "arminmusovic won by resignation"]

1. e4 {[%clk 0:03:00.9]} 1... c6 {[%clk 0:03:00]} 2. d4 {[%clk 0:03:00.7]} 2...
d5 {[%clk 0:03:00.9]} 3. exd5 {[%clk 0:03:00.9]} 3... cxd5 {[%clk 0:03:01.8]} 4.
Bd3 {[%clk 0:03:01.1]} 4... Nc6 {[%clk 0:03:02.7]} 5. c3 {[%clk 0:03:01.3]} 5...
Nf6 {[%clk 0:03:03.6]} 6. Bf4 {[%clk 0:03:00.7]} 6... g6 {[%clk 0:03:04.5]} 7.
Ne2 {[%clk 0:03:00.3]} 7... Bg7 {[%clk 0:03:05]} 8. O-O {[%clk 0:03:00.4]} 8...
O-O {[%clk 0:03:05.7]} 9. Nd2 {[%clk 0:03:00]} 9... Re8 {[%clk 0:03:06.4]} 10.
Ng3 {[%clk 0:02:57]} 10... Nd7 {[%clk 0:03:06.7]} 11. Re1 {[%clk 0:02:56.5]}
11... e5 {[%clk 0:03:07]} 12. dxe5 {[%clk 0:02:56.4]} 12... Ndxe5 {[%clk
0:03:07.9]} 13. Nf3 {[%clk 0:02:52.6]} 13... Bg4 {[%clk 0:03:06.1]} 14. Be2
{[%clk 0:02:44.9]} 14... Nxf3+ {[%clk 0:03:06.2]} 15. Bxf3 {[%clk 0:02:43.2]}
15... Rxe1+ {[%clk 0:03:07.1]} 16. Qxe1 {[%clk 0:02:43.3]} 16... Bxf3 {[%clk
0:03:07.7]} 17. gxf3 {[%clk 0:02:44.2]} 17... Qf6 {[%clk 0:02:53.1]} 18. Qd2
{[%clk 0:02:41]} 18... d4 {[%clk 0:02:49.5]} 19. Ne4 {[%clk 0:02:36.7]} 19...
Qf5 {[%clk 0:02:46.2]} 20. Nd6 {[%clk 0:02:32.3]} 20... Qd7 {[%clk 0:02:45.9]}
21. cxd4 {[%clk 0:02:27.3]} 21... Nxd4 {[%clk 0:02:44.8]} 22. Kg2 {[%clk
0:02:25.2]} 22... Rd8 {[%clk 0:02:40]} 23. Rd1 {[%clk 0:02:19.7]} 23... Qc6
{[%clk 0:02:36.8]} 24. Ne4 {[%clk 0:02:18.9]} 24... f5 {[%clk 0:02:26.5]} 25.
Rc1 {[%clk 0:01:58.7]} 25... Qd5 {[%clk 0:01:51.1]} 26. Rc5 {[%clk 0:01:55.9]}
26... Qxa2 {[%clk 0:01:48.2]} 27. Ng5 {[%clk 0:01:55.2]} 27... h6 {[%clk
0:01:40.4]} 28. Nh3 {[%clk 0:01:30.2]} 28... Ne6 {[%clk 0:01:37.6]} 29. Qa5
{[%clk 0:01:19]} 29... Qxa5 {[%clk 0:01:23.7]} 30. Rxa5 {[%clk 0:01:19.9]} 30...
a6 {[%clk 0:01:21.5]} 31. Be5 {[%clk 0:01:11.9]} 31... Bxe5 {[%clk 0:01:16.1]}
32. Rxe5 {[%clk 0:01:12.8]} 32... Kf7 {[%clk 0:01:16.7]} 33. b4 {[%clk 0:01:10]}
33... Kf6 {[%clk 0:01:06.5]} 34. Re1 {[%clk 0:01:04.5]} 34... Rd4 {[%clk
0:01:02]} 35. Rb1 {[%clk 0:01:03.1]} 35... b5 {[%clk 0:01:00.9]} 36. Kf1 {[%clk
0:00:56.9]} 36... g5 {[%clk 0:00:57.9]} 37. Ke2 {[%clk 0:00:55.7]} 37... Rc4
{[%clk 0:00:55.8]} 38. Ng1 {[%clk 0:00:51.6]} 38... Nd4+ {[%clk 0:00:56.1]} 39.
Kd3 {[%clk 0:00:50]} 39... Nc6 {[%clk 0:00:56.5]} 40. Ne2 {[%clk 0:00:46.6]}
40... Ne5+ {[%clk 0:00:55.5]} 41. Ke3 {[%clk 0:00:44.9]} 41... f4+ {[%clk
0:00:54.9]} 42. Kd2 {[%clk 0:00:44.9]} 42... Nxf3+ {[%clk 0:00:55.3]} 43. Kd3
{[%clk 0:00:45.1]} 43... Ne5+ {[%clk 0:00:55.1]} 44. Kd2 {[%clk 0:00:43.5]}
44... Nc6 {[%clk 0:00:55.1]} 45. Nc3 {[%clk 0:00:43.2]} 45... Ke5 {[%clk
0:00:53.4]} 46. Re1+ {[%clk 0:00:42.8]} 46... Kf5 {[%clk 0:00:50.9]} 47. Rb1
{[%clk 0:00:42.1]} 47... Rxb4 {[%clk 0:00:49.9]} 48. Re1 {[%clk 0:00:38.5]}
48... Rd4+ {[%clk 0:00:49.8]} 49. Kc2 {[%clk 0:00:38.3]} 49... Nb4+ {[%clk
0:00:46.6]} 50. Kb3 {[%clk 0:00:38.6]} 50... Nd3 {[%clk 0:00:47.2]} 51. Re8
{[%clk 0:00:38.5]} 51... Nc5+ {[%clk 0:00:46.5]} 52. Kb2 {[%clk 0:00:38.2]}
52... Rb4+ {[%clk 0:00:46.2]} 53. Kc2 {[%clk 0:00:38.2]} 53... Rc4 {[%clk
0:00:46.5]} 54. Kd2 {[%clk 0:00:34.9]} 54... b4 {[%clk 0:00:42.2]} 55. Nd5
{[%clk 0:00:34.6]} 55... Rd4+ {[%clk 0:00:42]} 56. Kc2 {[%clk 0:00:33]} 56...
Rxd5 {[%clk 0:00:42.9]} 0-1

[Event "*** SCC Grand Prix: Titled Tuesday Blitz"]
[Site "Chess.com"]
[Date "2020.07.14"]
[Round "3"]
[White "velemajstor767276"]
[Black "Maghalashvili"]
[Result "0-1"]
[WhiteElo "2533"]
[BlackElo "2771"]
[TimeControl "180+1"]
[EndTime "10:28:32 PDT"]
[Termination "Maghalashvili won on time"]

1. d4 {[%clk 0:03:00.9]} 1... Nf6 {[%clk 0:02:59.5]} 2. c4 {[%clk 0:03:00.3]}
2... e6 {[%clk 0:02:59.7]} 3. Nf3 {[%clk 0:02:58.8]} 3... d5 {[%clk 0:02:59.2]}
4. Nc3 {[%clk 0:02:58.4]} 4... Be7 {[%clk 0:02:59.3]} 5. Bg5 {[%clk 0:02:56.9]}
5... O-O {[%clk 0:02:59.7]} 6. e3 {[%clk 0:02:56.4]} 6... h6 {[%clk 0:02:59.8]}
7. Bh4 {[%clk 0:02:54.9]} 7... Ne4 {[%clk 0:03:00]} 8. Bxe7 {[%clk 0:02:51.4]}
8... Qxe7 {[%clk 0:03:00.9]} 9. Rc1 {[%clk 0:02:50.7]} 9... c6 {[%clk
0:03:00.5]} 10. Nxe4 {[%clk 0:02:26.9]} 10... dxe4 {[%clk 0:03:00.4]} 11. Nd2
{[%clk 0:02:27.8]} 11... e5 {[%clk 0:02:51.9]} 12. d5 {[%clk 0:02:26.3]} 12...
f5 {[%clk 0:02:49.6]} 13. Be2 {[%clk 0:02:07]} 13... a5 {[%clk 0:02:49.1]} 14.
O-O {[%clk 0:01:55.4]} 14... Na6 {[%clk 0:02:49.1]} 15. Kh1 {[%clk 0:01:51.2]}
15... Rd8 {[%clk 0:02:47]} 16. a3 {[%clk 0:01:15]} 16... Kh8 {[%clk 0:02:45.4]}
17. dxc6 {[%clk 0:01:12.3]} 17... bxc6 {[%clk 0:02:44]} 18. Qc2 {[%clk
0:01:12.6]} 18... Nc5 {[%clk 0:02:42]} 19. Rcd1 {[%clk 0:01:06.5]} 19... Be6
{[%clk 0:02:23.6]} 20. Nb1 {[%clk 0:01:05.5]} 20... f4 {[%clk 0:02:12.1]} 21.
Nc3 {[%clk 0:01:04.6]} 21... Bf5 {[%clk 0:01:59.6]} 22. f3 {[%clk 0:00:24]}
22... exf3 {[%clk 0:01:35.2]} 23. Qxf5 {[%clk 0:00:23.2]} 23... fxe2 {[%clk
0:01:35.4]} 24. Nxe2 {[%clk 0:00:24.1]} 24... fxe3 {[%clk 0:01:29.5]} 25. Qf3
{[%clk 0:00:21.8]} 25... Qg5 {[%clk 0:01:10.8]} 26. Qxc6 {[%clk 0:00:20.5]}
26... Rdc8 {[%clk 0:01:00.3]} 27. Qd5 {[%clk 0:00:18.3]} 27... a4 {[%clk
0:00:58.8]} 28. Ng3 {[%clk 0:00:16.8]} 28... Nb3 {[%clk 0:00:41.5]} 29. Rf5
{[%clk 0:00:13.7]} 29... Qg4 {[%clk 0:00:33.4]} 30. Re1 {[%clk 0:00:12]} 30...
Qxc4 {[%clk 0:00:25.7]} 31. Qxc4 {[%clk 0:00:10.3]} 31... Rxc4 {[%clk
0:00:26.6]} 32. Rxe5 {[%clk 0:00:10.5]} 32... Rc2 {[%clk 0:00:26.2]} 33. Re2
{[%clk 0:00:09.1]} 33... Rc1+ {[%clk 0:00:24.7]} 0-1

[Event "*** SCC Grand Prix: Titled Tuesday Blitz"]
[Site "Chess.com"]
[Date "2020.07.14"]
[Round "3"]
[White "ace_mar"]
[Black "KejJaj"]
[Result "1-0"]
[WhiteElo "2452"]
[BlackElo "2036"]
[TimeControl "180+1"]
[EndTime "10:28:33 PDT"]
[Termination "ace_mar won by checkmate"]

1. d4 {[%clk 0:03:00.9]} 1... f5 {[%clk 0:02:59.4]} 2. g3 {[%clk 0:03:00.1]}
2... Nf6 {[%clk 0:02:59]} 3. Bg2 {[%clk 0:03:00.6]} 3... e6 {[%clk 0:02:59.8]}
4. Nf3 {[%clk 0:03:00.8]} 4... d5 {[%clk 0:03:00]} 5. O-O {[%clk 0:03:00.9]}
5... Bd6 {[%clk 0:02:59.8]} 6. c4 {[%clk 0:03:01.3]} 6... c6 {[%clk 0:02:59.8]}
7. Nc3 {[%clk 0:03:01.9]} 7... O-O {[%clk 0:02:55.8]} 8. Qc2 {[%clk 0:03:02.2]}
8... Ne4 {[%clk 0:02:48.2]} 9. Rb1 {[%clk 0:03:01.8]} 9... a5 {[%clk 0:02:32.7]}
10. a3 {[%clk 0:02:59.9]} 10... Nd7 {[%clk 0:02:10.2]} 11. b4 {[%clk 0:02:59.7]}
11... axb4 {[%clk 0:02:00.5]} 12. axb4 {[%clk 0:03:00.6]} 12... Ndf6 {[%clk
0:01:57.5]} 13. b5 {[%clk 0:02:59.3]} 13... Bd7 {[%clk 0:01:46.4]} 14. c5 {[%clk
0:02:51.9]} 14... Bb8 {[%clk 0:01:35.8]} 15. bxc6 {[%clk 0:02:51.2]} 15... Bxc6
{[%clk 0:01:35.1]} 16. Bf4 {[%clk 0:02:50.8]} 16... Bxf4 {[%clk 0:01:33.1]} 17.
gxf4 {[%clk 0:02:51.7]} 17... Nxc3 {[%clk 0:01:31.3]} 18. Qxc3 {[%clk
0:02:47.2]} 18... Ne4 {[%clk 0:01:32.2]} 19. Qb4 {[%clk 0:02:39.2]} 19... Kh8
{[%clk 0:01:31]} 20. Ne5 {[%clk 0:02:31.3]} 20... Qh4 {[%clk 0:01:25.6]} 21. e3
{[%clk 0:02:15.1]} 21... g5 {[%clk 0:01:15.6]} 22. f3 {[%clk 0:02:03.2]} 22...
Nf6 {[%clk 0:01:11.7]} 23. fxg5 {[%clk 0:01:54.3]} 23... Qxg5 {[%clk 0:01:11.1]}
24. Rfe1 {[%clk 0:01:32.4]} 24... Nd7 {[%clk 0:00:51.5]} 25. Nxd7 {[%clk
0:01:27.6]} 25... Bxd7 {[%clk 0:00:51]} 26. Qxb7 {[%clk 0:01:27.4]} 26... Rg8
{[%clk 0:00:51]} 27. Rb2 {[%clk 0:01:21.1]} 27... Ba4 {[%clk 0:00:23.2]} 28. c6
{[%clk 0:01:15.1]} 28... Rac8 {[%clk 0:00:21.1]} 29. c7 {[%clk 0:01:06.8]} 29...
h5 {[%clk 0:00:20.3]} 30. f4 {[%clk 0:00:31.7]} 30... Qg4 {[%clk 0:00:18.1]} 31.
Qa7 {[%clk 0:00:19.5]} 31... Bb5 {[%clk 0:00:15.1]} 32. Qc5 {[%clk 0:00:18]}
32... Bd7 {[%clk 0:00:13.9]} 33. Qd6 {[%clk 0:00:16.9]} 33... Ba4 {[%clk
0:00:11.8]} 34. Qxe6 {[%clk 0:00:15.2]} 34... h4 {[%clk 0:00:11.6]} 35. Qh6#
{[%clk 0:00:15.2]} 1-0